fUSD/lending_fUSD_20250214
["ID","MTS","AMOUNT","RATE_DAILY","PERIOD"]
[353084417,1739545852836,-500.0,0.00013863,2]
[353084418,1739545852846,-500.0,0.00013863,2]
[353084419,1739545852857,-1190.6,0.00013863,2]
[353084420,1739545852867,-1033.81,0.00013863,2]
[353084421,1739545852876,-1219.91,0.00013863,2]
[353084422,1739545852885,-1934.31,0.00013863,2]
[353084423,1739545852895,-996.28,0.00013863,2]
[353084424,1739545852904,-1707.79,0.00013863,2]
[353084425,1739545852915,-1903.36,0.00013863,2]
[353084426,1739545852924,-500.0,0.00013863,2]
[353084427,1739545852934,-786.87,0.00013863,2]
[353084428,1739545852944,-2850.92,0.00013863,2]
[353084429,1739545852955,-2673.92,0.00013863,2]
[353084430,1739545852965,-1093.32,0.00013863,2]
[353084431,1739545852975,-775.77,0.00013863,2]
[353084432,1739545852986,-2256.11,0.00013863,2]
[353084433,1739545852996,-1784.99,0.00013863,2]
[353084434,1739545853005,-500.0,0.00013863,2]
[353084435,1739545853015,-536.97,0.00013863,2]
[353084436,1739545853024,-2040.21,0.00013863,2]
[353084437,1739545853033,-768.54,0.00013863,2]
[353084438,1739545853043,-676.76,0.00013863,2]
[353084439,1739545853052,-5749.68,0.00013863,2]
[353084440,1739545853062,-1779.74,0.00013863,2]
[353084441,1739545853073,-500.0,0.00013863,2]
[353084442,1739545853082,-1695.09,0.00013863,2]
[353084443,1739545853091,-2211.94,0.00013863,2]
[353084444,1739545853101,-500.0,0.00013863,2]
[353084445,1739545853110,-1435.98,0.00013863,2]
[353084446,1739545853120,-1204.1,0.00013863,2]
[353084447,1739545853129,-2262.58,0.00013863,2]
[353084448,1739545853139,-500.0,0.00013863,2]
[353084449,1739545853149,-2522.48,0.00013863,2]
[353084450,1739545853159,-1172.11,0.00013863,2]
[353084451,1739545853168,-2189.82,0.00013863,2]
[353084452,1739545853178,-1663.8,0.00013863,2]
[353084453,1739545853188,-1742.82,0.00013863,2]
[353084454,1739545853198,-534.63,0.00013863,2]
[353084455,1739545853207,-1820.15,0.00013863,2]
[353084456,1739545853218,-1455.85,0.00013863,2]
[353084457,1739545853228,-1887.67,0.00013863,2]
[353084458,1739545853238,-2784.26,0.00013863,2]
[353084459,1739545853248,-500.0,0.00013863,2]
[353084460,1739545853257,-1331.63,0.00013863,2]
[353084461,1739545853267,-5429.9,0.00013863,2]
[353084462,1739545853276,-511.96,0.00013863,2]
[353084463,1739545853286,-380.6867707,0.00013863,2]
[353084464,1739545853296,-515.06,0.00013863,2]
[353084465,1739545853305,-500.0,0.00013863,2]
[353084466,1739545853374,-500.0,0.00013863,2]
[353084467,1739545853384,-1302.96,0.00013863,2]
[353084468,1739545853394,-2298.91,0.00013863,2]
[353084469,1739545853404,-1223.72,0.00013863,2]
[353084470,1739545853414,-500.0,0.00013863,2]
[353084471,1739545853423,-1905.75,0.00013863,2]
[353084472,1739545853432,-500.0,0.00013863,2]
[353084473,1739545853442,-500.0,0.00013863,2]
[353084474,1739545853452,-500.0,0.00013863,2]
[353084475,1739545853462,-500.0,0.00013863,2]
[353084476,1739545853471,-1453.68,0.00013863,2]
[353084477,1739545853482,-500.0,0.00013863,2]
[353084478,1739545853495,-2096.41,0.00013863,2]
[353084479,1739545853505,-500.0,0.00013863,2]
[353084480,1739545853514,-1973.67,0.00013863,2]
[353084481,1739545853526,-500.0,0.00013863,2]
[353084482,1739545853536,-500.0,0.00013863,2]
[353084483,1739545853546,-2059.89,0.00013863,2]
[353084484,1739545853556,-2226.57,0.00013863,2]
[353084485,1739545853568,-500.0,0.00013863,2]
[353084486,1739545853577,-500.0,0.00013863,2]
[353084487,1739545853587,-1190.45,0.00013863,2]
[353084488,1739545853596,-500.0,0.00013863,2]
[353084489,1739545853606,-500.0,0.00013863,2]
[353084490,1739545853616,-1515.7,0.00013863,2]
[353084491,1739545853625,-2907.19,0.00013863,2]
[353084492,1739545853635,-500.0,0.00013863,2]
[353084493,1739545853644,-568.24,0.00013863,2]
[353084494,1739545853654,-3399.48,0.00013863,2]
[353084495,1739545853663,-500.0,0.00013863,2]
[353084496,1739545853673,-177.67,0.00013863,2]
[353084497,1739545853683,-1114.96,0.00013863,2]
[353084498,1739545853693,-523.07,0.00013863,2]
[353084499,1739545853703,-500.0,0.00013863,2]
[353084500,1739545853712,-695.31,0.00013863,2]
[353084501,1739545853722,-500.0,0.00013863,2]
[353084502,1739545853732,-3031.28,0.00013863,2]
[353084503,1739545853743,-500.0,0.00013863,2]
[353084504,1739545853752,-1318.18,0.00013863,2]
[353084505,1739545853763,-1937.16,0.00013863,2]
[353084506,1739545853773,-500.0,0.00013863,2]
[353084507,1739545853783,-2979.21,0.00013863,2]
[353084508,1739545853792,-755.12,0.00013863,2]
[353084509,1739545853802,-1872.05,0.00013863,2]
[353084510,1739545853811,-999.78,0.00013863,2]
[353084511,1739545853821,-826.67,0.00013863,2]
[353084512,1739545853830,-206.09,0.00013863,2]
[353084513,1739545853840,-966.81,0.00013863,2]
[353084514,1739545853849,-500.0,0.00013863,2]
[353084515,1739545853859,-2108.51,0.00013863,2]
[353084516,1739545853868,-691.63,0.00013863,2]
[353084517,1739545853877,-500.0,0.00013863,2]
[353084518,1739545853887,-500.0,0.00013863,2]
[353084519,1739545853896,-500.0,0.00013863,2]
[353084520,1739545853905,-500.0,0.0001389,2]
[353084521,1739545853914,-2500.0,0.000139,5]
[353084522,1739545853924,-5540.0,0.000139,2]
[353084523,1739545853934,-4870.28456458,0.00013927,2]
[353084524,1739545853944,-1514.0,0.00013927,2]
[353084525,1739545853953,-2739.63,0.00013944,2]
[353084526,1739545853963,-1063.8,0.00013944,2]
[353084527,1739545853973,-2248.0,0.00013944,2]
[353084528,1739545853983,-2636.48,0.00013944,2]
[353084529,1739545853993,-1633.89,0.00013944,2]
[353084530,1739545854003,-1061.39,0.00013944,2]
[353084531,1739545854012,-803.67,0.00013944,2]
[353084532,1739545854022,-1886.85,0.00013944,2]
[353084533,1739545854032,-197.92,0.00013944,2]
[353084534,1739545854041,-524.54,0.00013944,2]
[353084535,1739545854050,-1860.92,0.00013944,2]
[353084536,1739545854060,-2239.68,0.00013944,2]
[353084537,1739545854069,-857.63,0.00013944,2]
[353084538,1739545854079,-1144.04,0.00013944,2]
[353084539,1739545854088,-2376.38,0.00013944,2]
[353084540,1739545854098,-2835.46,0.00013944,2]
[353084541,1739545854108,-5703.32,0.00013944,2]
[353084542,1739545854117,-1675.17,0.00013944,2]
[353084543,1739545854127,-1816.05,0.00013944,2]
[353084544,1739545854137,-2748.8,0.00013944,2]
[353084545,1739545854147,-2556.39,0.00013944,2]
[353084546,1739545854156,-724.27,0.00013944,2]
[353084547,1739545854165,-1771.07,0.00013944,2]
[353084548,1739545854175,-2152.37,0.00013944,2]
[353084549,1739545854184,-2248.75,0.00013944,2]
[353084550,1739545854193,-500.0,0.00013945,2]
[353084551,1739545854203,-500.0,0.00013945,2]
[353084552,1739545854212,-500.0,0.00013945,2]
[353084553,1739545854221,-500.0,0.00013945,2]
[353084554,1739545854231,-500.0,0.00013945,2]
[353084555,1739545854240,-500.0,0.00013945,2]
[353084556,1739545854249,-500.0,0.00013945,2]
[353084557,1739545854258,-500.0,0.00013945,2]
[353084558,1739545854267,-500.0,0.00013945,2]
[353084559,1739545854278,-500.0,0.00013945,2]
[353084560,1739545854287,-881.83,0.00013945,2]
[353084561,1739545854298,-500.0,0.00013945,2]
[353084562,1739545854307,-1399.94,0.00013945,2]
[353084563,1739545854316,-624.26,0.00013945,2]
[353084564,1739545854325,-500.0,0.00013945,2]
[353084565,1739545854335,-500.0,0.00013945,2]
[353084566,1739545854344,-1576.73,0.00013945,2]
[353084567,1739545854353,-500.0,0.00013945,2]
[353084568,1739545854363,-500.0,0.00013945,2]
[353084569,1739545854371,-508.66,0.00013945,2]
[353084570,1739545854381,-500.0,0.00013945,2]
[353084571,1739545854390,-500.0,0.00013945,2]
[353084572,1739545854399,-500.0,0.00013945,2]
[353084573,1739545854408,-500.0,0.00013945,2]
[353084574,1739545854417,-705.36,0.00013945,2]
[353084575,1739545854426,-500.0,0.00013945,2]
[353084576,1739545854435,-712.14,0.00013945,2]
[353084577,1739545854444,-922.48,0.00013945,2]
[353084578,1739545854454,-2446.53,0.00013945,2]
[353084579,1739545854463,-500.0,0.00013945,2]
[353084580,1739545854472,-952.2,0.00013945,2]
[353084581,1739545854482,-500.0,0.00013945,2]
[353084582,1739545854498,-500.0,0.00013945,2]
[353084583,1739545854507,-570.76,0.00013945,2]
[353084584,1739545854516,-624.83,0.00013945,2]
[353084585,1739545854527,-500.0,0.00013945,2]
[353084586,1739545854535,-913.23,0.00013945,2]
[353084587,1739545854545,-610.01,0.00013945,2]
[353084588,1739545854554,-500.0,0.00013945,2]
[353084589,1739545854565,-500.0,0.00013945,2]
[353084590,1739545854574,-500.0,0.00013945,2]
[353084591,1739545854583,-500.0,0.00013945,2]
[353084592,1739545854593,-634.51,0.00013945,2]
[353084593,1739545854602,-648.6,0.00013945,2]
[353084594,1739545854611,-500.0,0.00013945,2]
[353084595,1739545854620,-500.0,0.00013945,2]
[353084596,1739545854629,-500.0,0.00013945,2]
[353084597,1739545854639,-1506.87,0.00013945,2]
[353084598,1739545854648,-500.0,0.00013945,2]
[353084599,1739545854659,-500.0,0.00013945,2]
[353084600,1739545854668,-1081.57,0.00013945,2]
[353084601,1739545854678,-670.92,0.00013945,2]
[353084602,1739545854687,-500.0,0.00013945,2]
[353084603,1739545854697,-708.63,0.00013945,2]
[353084604,1739545854706,-500.0,0.00013945,2]
[353084605,1739545854715,-500.0,0.00013945,2]
[353084606,1739545854724,-509.91,0.00013945,2]
[353084607,1739545854734,-500.0,0.00013945,2]
[353084608,1739545854744,-1562.1,0.00013945,2]
[353084609,1739545854753,-500.0,0.00013945,2]
[353084610,1739545854762,-500.0,0.00013945,2]
[353084611,1739545854771,-1104.74,0.00013945,2]
[353084612,1739545854780,-500.0,0.00013945,2]
[353084613,1739545854790,-500.0,0.00013945,2]
[353084614,1739545854800,-507.78,0.00013945,2]
[353084615,1739545854809,-744.35,0.00013945,2]
[353084616,1739545854819,-500.0,0.00013945,2]
[353084617,1739545854828,-500.0,0.00013945,2]
[353084618,1739545854838,-500.0,0.00013945,2]
[353084619,1739545854848,-515.81,0.00013945,2]
[353084620,1739545854858,-501.08,0.00013945,2]
[353084621,1739545854868,-974.01,0.00013945,2]
[353084622,1739545854879,-500.0,0.00013945,2]
[353084623,1739545854889,-500.0,0.00013945,2]
[353084624,1739545854899,-1110.24,0.00013945,2]
[353084625,1739545854909,-500.0,0.00013945,2]
[353084626,1739545854919,-918.01,0.00013945,2]
[353084627,1739545854928,-500.0,0.00013945,2]
[353084628,1739545854938,-500.0,0.00013945,2]
[353084629,1739545854947,-500.0,0.00013945,2]
[353084630,1739545854957,-500.0,0.00013945,2]
[353084631,1739545854967,-568.81,0.00013945,2]
[353084632,1739545854976,-500.0,0.00013945,2]
[353084633,1739545854986,-1168.03,0.00013945,2]
[353084634,1739545854996,-500.0,0.00013945,2]
[353084635,1739545855005,-840.07,0.00013945,2]
[353084636,1739545855015,-500.0,0.00013945,2]
[353084637,1739545855024,-208.22702931,0.00013945,2]
[353084638,1739545855033,-775.03,0.00013945,2]
[353084639,1739545855043,-500.0,0.00013945,2]
[353084640,1739545855052,-504.07,0.00013945,2]
[353084641,1739545855062,-1293.04,0.00013945,2]
[353084642,1739545855071,-500.0,0.00013945,2]
[353084643,1739545855080,-500.0,0.00013945,2]
[353084644,1739545855090,-500.0,0.00013945,2]
[353084645,1739545855099,-500.0,0.00013945,2]
[353084646,1739545855109,-767.68,0.00013945,2]
[353084647,1739545855118,-798.49,0.00013945,2]
[353084648,1739545855128,-736.58,0.00013945,2]
[353084649,1739545855137,-500.0,0.00013945,2]
[353084650,1739545855148,-500.0,0.00013945,2]
[353084651,1739545855158,-500.0,0.00013945,2]
[353084652,1739545855167,-500.0,0.00013945,2]
[353084653,1739545855176,-737.54,0.00013945,2]
[353084654,1739545855186,-500.0,0.00013945,2]
[353084655,1739545855197,-500.0,0.00013945,2]
[353084656,1739545855207,-500.0,0.00013945,2]
[353084657,1739545855216,-500.0,0.00013945,2]
[353084658,1739545855225,-867.18,0.00013945,2]
[353084659,1739545855235,-500.0,0.00013945,2]
[353084660,1739545855244,-780.092677,0.00013945,2]
[353084661,1739545855254,-500.0,0.00013945,2]
[353084662,1739545855264,-500.0,0.00013945,2]
[353084663,1739545855273,-865.33,0.00013945,2]
[353084664,1739545855282,-543.11,0.00013945,2]
[353084665,1739545855291,-505.64476219,0.00013945,2]
[353084666,1739545855301,-591.66,0.00013945,2]
[353084667,1739545855310,-500.0,0.00013945,2]
[353084668,1739545855319,-500.0,0.00013945,2]
[353084669,1739545855328,-1114.914465,0.00013945,2]
[353084670,1739545855337,-783.35,0.00013945,2]
[353084671,1739545855346,-500.0,0.00013945,2]
[353084672,1739545855356,-500.0,0.00013945,2]
[353084673,1739545855365,-500.0,0.00013945,2]
[353084674,1739545855376,-535.29,0.00013945,2]
[353084675,1739545855387,-500.0,0.00013945,2]
[353084676,1739545855397,-500.0,0.00013945,2]
[353084677,1739545855407,-500.0,0.00013945,2]
[353084678,1739545855417,-846.18,0.00013945,2]
[353084679,1739545855429,-1574.94,0.00013945,2]
[353084680,1739545855439,-545.4,0.00013945,2]
[353084681,1739545855449,-500.0,0.00013945,2]
[353084682,1739545855459,-500.0,0.00013945,2]
[353084683,1739545855470,-500.0,0.00013945,2]
[353084684,1739545855485,-1163.11,0.00013945,2]
[353084685,1739545855498,-500.0,0.00013945,2]
[353084686,1739545855510,-500.0,0.00013945,2]
[353084687,1739545855520,-500.0,0.00013945,2]
[353084688,1739545855531,-758.18,0.00013945,2]
[353084689,1739545855540,-500.0,0.00013945,2]
[353084690,1739545855550,-903.24,0.00013945,2]
[353084691,1739545855561,-1395.2,0.00013945,2]
[353084692,1739545855571,-500.0,0.00013945,2]
[353084693,1739545855581,-500.0,0.00013945,2]
[353084694,1739545855592,-500.0,0.00013945,2]
[353084695,1739545855602,-500.0,0.00013945,2]
[353084696,1739545855612,-500.0,0.00013945,2]
[353084697,1739545855622,-500.0,0.00013945,2]
[353084698,1739545855634,-500.0,0.00013945,2]
[353084699,1739545855645,-674.27,0.00013945,2]
[353084700,1739545855657,-500.0,0.00013945,2]
[353084701,1739545855667,-566.03,0.00013945,2]
[353084702,1739545855677,-640.74,0.00013945,2]
[353084703,1739545855687,-504.57,0.00013945,2]
[353084704,1739545855697,-500.0,0.00013945,2]
[353084705,1739545855707,-500.0,0.00013945,2]
[353084706,1739545855717,-582.08,0.00013945,2]
[353084707,1739545855727,-1542.57,0.00013945,2]
[353084708,1739545855739,-1548.23,0.00013945,2]
[353084709,1739545855749,-500.0,0.00013945,2]
[353084710,1739545855759,-500.0,0.00013945,2]
[353084711,1739545855768,-500.0,0.00013945,2]
[353084712,1739545855778,-500.0,0.00013945,2]
[353084713,1739545855789,-643.48,0.00013945,2]
[353084714,1739545855799,-531.47,0.00013945,2]
[353084715,1739545855808,-500.0,0.00013945,2]
[353084716,1739545855819,-500.0,0.00013945,2]
[353084717,1739545855828,-544.38,0.00013945,2]
[353084718,1739545855838,-881.25,0.00013945,2]
[353084719,1739545855847,-910.2,0.00013945,2]
[353084720,1739545855857,-500.0,0.00013945,2]
[353084721,1739545855866,-500.0,0.00013945,2]
[353084722,1739545855875,-1227.48,0.00013945,2]
[353084723,1739545855885,-500.0,0.00013945,2]
[353084724,1739545855894,-500.0,0.00013945,2]
[353084725,1739545855904,-1017.57,0.00013945,2]
[353084726,1739545855913,-500.0,0.00013945,2]
[353084727,1739545855923,-611.73,0.00013945,2]
[353084728,1739545855933,-500.0,0.00013945,2]
[353084729,1739545855942,-591.36,0.00013945,2]
[353084730,1739545855952,-500.0,0.00013945,2]
[353084731,1739545855962,-500.0,0.00013945,2]
[353084732,1739545855972,-500.0,0.00013945,2]
[353084733,1739545855981,-500.0,0.00013945,2]
[353084734,1739545855992,-500.0,0.00013945,2]
[353084735,1739545856002,-834.4,0.00013945,2]
[353084736,1739545856011,-500.0,0.00013945,2]
[353084737,1739545856021,-1097.81,0.00013945,2]
[353084738,1739545856030,-500.0,0.00013945,2]
[353084739,1739545856040,-500.0,0.00013945,2]
[353084740,1739545856050,-500.0,0.00013945,2]
[353084741,1739545856060,-525.5,0.00013945,2]
[353084742,1739545856069,-606.72,0.00013945,2]
[353084743,1739545856078,-1076.19,0.00013945,2]
[353084744,1739545856088,-500.0,0.00013945,2]
[353084745,1739545856097,-893.46,0.00013945,2]
[353084746,1739545856107,-923.71,0.00013945,2]
[353084747,1739545856118,-692.78,0.00013945,2]
[353084748,1739545856128,-500.0,0.00013945,2]
[353084749,1739545856138,-500.0,0.00013945,2]
[353084750,1739545856148,-500.0,0.00013945,2]
[353084751,1739545856158,-836.82,0.00013945,2]
[353084752,1739545856167,-948.97,0.00013945,2]
[353084753,1739545856176,-500.0,0.00013945,2]
[353084754,1739545856185,-253.00998709,0.00013945,2]
[353084755,1739545856531,-246.99001291,0.00013945,2]
[353084756,1739545856541,-725.61998709,0.00013945,2]
[353084757,1739545856793,-635.5,0.00013698,2]
[353084758,1739545856803,-635.5,0.0001378,2]
[353084759,1739545856813,-96.49224698,0.00013863,2]
[353084760,1739545856864,-539.00775302,0.00013863,2]
[353084761,1739545856874,-486.04001291,0.00013945,2]
[353084762,1739545856883,-536.97,0.00013945,2]
[353084763,1739545856893,-500.0,0.00013945,2]
[353084764,1739545856903,-500.0,0.00013945,2]
[353084765,1739545856913,-660.75,0.00013945,2]
[353084766,1739545856922,-176.81720848,0.00013945,2]
[353084767,1739545856934,-323.18279152,0.00013945,2]
[353084768,1739545856943,-765.26,0.00013945,2]
[353084769,1739545856953,-737.1,0.00013945,2]
[353084770,1739545856962,-500.0,0.00013945,2]
[353084771,1739545856972,-559.63088707,0.00013945,2]
[353084772,1739545856981,-500.0,0.00013945,2]
[353084773,1739545856992,-1347.02,0.00013945,2]
[353084774,1739545857002,-311.4855712,0.00013945,2]
[353084776,1739545875335,86464.2903583,0.00013944,7]
[353084778,1739546025694,500.0,0.00013698,7]
[353084779,1739546026076,500.0,0.0001378,7]
[353084781,1739546248115,158.16439875,8.169e-05,2]
[353084782,1739546491923,5460.00000001,0.00020828,60]
[353084783,1739546497799,-1297.4231,8.699e-05,2]
[353084784,1739546497826,-200.0,8.699e-05,2]
[353084785,1739546515017,-314.4022,8.851e-05,2]
[353084819,1739547032007,-952.88,8.219e-05,2]
[353084820,1739547032017,-932.8002487,8.699e-05,2]
[353084821,1739547032029,-844.8363513,8.699e-05,2]
[353084822,1739547032040,-309.4504,8.699e-05,2]
[353084823,1739547032049,-180.45539977,8.699e-05,2]
[353084824,1739547032059,-200.0,9.025e-05,2]
[353084825,1739547032069,-464.17,9.55e-05,2]
[353084826,1739547032079,-200.0,9.569e-05,2]
[353084827,1739547032090,-58.12753809,9.569e-05,2]
[353084828,1739547032103,-141.87246191,9.569e-05,2]
[353084829,1739547032113,-1852.42,9.657e-05,2]
[353084830,1739547032124,-400.0,9.7e-05,3]
[353084831,1739547032134,-300.0,9.791e-05,2]
[353084832,1739547032144,-2550.09653938,9.792e-05,2]
[353084833,1739547032163,-25327.24346062,9.792e-05,2]
[353084834,1739547032174,-900.0,9.8e-05,3]
[353084835,1739547032185,-1300.0,9.9e-05,3]
[353084836,1739547032194,-500.0,9.973e-05,2]
[353084837,1739547032204,-182.28331995,9.973e-05,2]
[353084838,1739547032215,-155.39089523,9.973e-05,2]
[353084840,1739547032226,-201.54837227,9.973e-05,2]
[353084842,1739547032236,-500.0,9.973e-05,2]
[353084844,1739547032246,-160.47717206,9.973e-05,2]
[353084846,1739547032255,-150.0,9.974e-05,2]
[353084848,1739547032265,-207.13291084,9.975e-05,2]
[353084850,1739547032275,-1254.06576614,9.975e-05,2]
[353084852,1739547032284,-500.0,9.979e-05,2]
[353084854,1739547032294,-291.33840209,9.979e-05,2]
[353084856,1739547032304,-9394.0425214,9.98e-05,2]
[353084858,1739547032316,-5226.49427502,9.98e-05,2]
[353084860,1739547032328,-550.0,9.98e-05,2]
[353084863,1739547032340,-19554.6,9.98e-05,2]
[353084865,1739547032351,-1395.09553501,9.98e-05,2]
[353084868,1739547032370,-77412.33502395,9.98e-05,2]
[353084870,1739547032382,-3861.16061818,9.98e-05,2]
[353084872,1739547032394,-540.0,9.98e-05,2]
[353084874,1739547032407,-535.47,9.98e-05,2]
[353084876,1739547032424,-295.49189213,9.98e-05,2]
[353084880,1739547032453,-3071.48316617,9.98e-05,2]
[353084883,1739547032466,-1097.72946846,9.98e-05,2]
[353084885,1739547032490,-824.01204682,9.98e-05,2]
[353084889,1739547032525,-1204.75909849,9.98e-05,2]
[353084891,1739547032536,-2638.46326008,9.98e-05,2]
[353084896,1739547032568,-376.46009504,9.98e-05,2]
[353085002,1739547037689,-335.94,9.682e-05,3]
[353085003,1739547037699,-2885.72908599,9.98e-05,2]
[353085004,1739547037711,-2736.88778201,9.98e-05,2]
[353085005,1739547037726,-603.465158,9.98e-05,2]
[353085006,1739547037739,-811.5199704,9.98e-05,2]
[353085007,1739547037751,-1830743.06518315,9.98e-05,2]
[353085008,1739547037763,-1508938.99578245,0.0001,2]
[353085009,1739547037774,-332.58896485,0.0001,2]
[353085010,1739547037784,-1800.0,0.0001,3]
[353085011,1739547037795,-1678.16113468,0.0001,2]
[353085012,1739547037805,-8861668.07787386,0.0001,2]
[353085013,1739547037816,-327.2631549,0.0001,2]
[353085014,1739547037826,-575.22331318,0.0001,2]
[353085015,1739547037835,-940.73,0.00010075,2]
[353085016,1739547037844,-154.14,0.00010137,2]
[353085017,1739547037855,-733.3535217,0.00010269,2]
[353085018,1739547037864,-19079.80178692,0.00010369,2]
[353085019,1739547037876,-952.88,0.00010478,2]
[353085020,1739547037887,-1000.0,0.00010521,2]
[353085021,1739547037897,-1254.06576612,0.00010653,2]
[353085022,1739547037907,-464.17,0.00010744,2]
[353085024,1739547037918,-250.0,0.0001086,2]
[353085026,1739547037928,-170.86501624,0.000109,2]
[353085028,1739547037937,-170.86501624,0.000109,2]
[353085029,1739547037949,-170.86501624,0.000109,2]
[353085031,1739547037960,-255.0,0.00010971,2]
[353085033,1739547037970,-16849.9792475,0.00011,2]
[353085035,1739547037982,-3019.33493097,0.00011099,2]
[353085036,1739547037992,-3019.33493094,0.00011099,2]
[353085038,1739547038001,-3019.33493094,0.00011099,2]
[353085040,1739547038011,-999.99,0.00011281,2]
[353085042,1739547038021,-1878.09,0.00011281,2]
[353085043,1739547038031,-3491.95,0.00011281,2]
[353085045,1739547038040,-7339.19,0.00011281,2]
[353085046,1739547038050,-2074.55,0.00011281,2]
[353085049,1739547038059,-480.82,0.00011281,2]
[353085051,1739547038069,-6610.47,0.00011281,2]
[353085053,1739547038079,-150.99,0.00011281,2]
[353085055,1739547038089,-9999.99,0.00011281,2]
[353085057,1739547038099,-150.99,0.00011281,2]
[353085059,1739547038110,-299.99,0.00011281,2]
[353085060,1739547038119,-639.93,0.00011281,2]
[353085062,1739547038128,-835.42,0.00011351,2]
[353085064,1739547038138,-3019.33493094,0.00011388,2]
[353085066,1739547038148,-1254.06576612,0.0001143,2]
[353085067,1739547038158,-1500.0,0.00011522,2]
[353085069,1739547038168,-1000.0,0.00011566,2]
[353085071,1739547038179,-500.0,0.00011566,2]
[353085073,1739547038188,-300.0,0.00011617,2]
[353085074,1739547038198,-250.0,0.00011638,2]
[353085076,1739547038208,-4794.54,0.00011663,2]
[353085078,1739547038218,-23900.0,0.00011678,2]
[353085080,1739547038231,-736.77,0.0001168,2]
[353085082,1739547038241,-3218.72,0.00011688,2]
[353085084,1739547038251,-165.51,0.00011705,2]
[353085086,1739547038262,-927.16,0.00011759,2]
[353085087,1739547038272,-531.91,0.00011776,2]
[353085089,1739547038282,-3019.33493094,0.00011839,2]
[353085091,1739547038292,-464.17,0.00011938,2]
[353085093,1739547038303,-8245.46971081,0.00012,2]
[353085095,1739547038313,-1254.06576612,0.00012208,2]
[353085096,1739547038323,-3019.33493094,0.00012289,2]
[353085098,1739547038333,-575.22331316,0.000124,2]
[353085100,1739547038343,-150.0,0.00012411,2]
[353085102,1739547038354,-315.0,0.0001244,2]
[353085104,1739547038364,-178.06,0.00012564,2]
[353085105,1739547038374,-306.6,0.00012564,2]
[353085107,1739547038385,-178.06,0.00012568,2]
[353085109,1739547038395,-178.06,0.00012571,2]
[353085111,1739547038405,-178.06,0.00012574,2]
[353085113,1739547038415,-178.06,0.00012578,2]
[353085115,1739547038425,-178.06,0.00012581,2]
[353085116,1739547038435,-178.06,0.00012584,2]
[353085118,1739547038445,-178.06,0.00012588,2]
[353085120,1739547038455,-178.06,0.00012591,2]
[353085122,1739547038464,-178.06,0.00012594,2]
[353085124,1739547038476,-178.06,0.00012598,2]
[353085125,1739547038485,-150.0,0.000126,2]
[353085127,1739547038495,-150.0,0.000126,2]
[353085129,1739547038504,-150.0,0.000126,2]
[353085131,1739547038514,-150.50178747,0.000126,2]
[353085133,1739547038524,-178.06,0.00012601,2]
[353085152,1739547038760,-178.06,0.00012604,2]
[353085154,1739547038771,-178.06,0.00012608,2]
[353085156,1739547038782,-178.06,0.00012611,2]
[353085158,1739547038792,-327.2631549,0.00012612,2]
[353085159,1739547038802,-178.06,0.00012614,2]
[353085161,1739547038811,-178.06,0.00012617,2]
[353085163,1739547038821,-1500.0,0.0001262,2]
[353085165,1739547038831,-178.06,0.00012621,2]